bitfinex-derivatives/quotes_BNBF0:USTF0_20250807
["timestamp","ask_amount","ask_price","bid_price","bid_amount"]
[1754589724854,0.995,775.84,775.12,0.22425209]
[1754589725057,0.85739022,775.83,775.12,0.22425209]
[1754589725253,0.85739022,775.82,775.12,0.22425209]
[1754589725457,0.85739022,775.81,775.12,0.22425209]
[1754589725657,0.85739022,775.8,775.12,0.22425209]
[1754589725857,0.995,775.84,775.12,0.22425209]
[1754589726157,0.85758874,775.83,775.12,0.22425209]
[1754589726354,0.85758874,775.82,775.12,0.22425209]
[1754589728461,0.86699635,775.78,775.03,0.86407175]
[1754589728760,0.86699635,775.76,775.03,0.86407175]
[1754589728956,0.86699635,775.69,774.98,0.86407175]
[1754589729261,0.86699635,775.62,774.89,0.86407175]
[1754589729557,0.86699635,775.61,774.88,0.2244032]
[1754589729761,0.86699635,775.62,774.88,0.2244032]
[1754589730058,0.86699635,775.6,774.88,0.2244032]
[1754589730258,0.86699635,775.59,774.88,0.2244032]
[1754589730462,0.86699635,775.61,774.88,0.2244032]
[1754589731358,1.73599635,775.6,774.88,0.2244032]
[1754589731664,0.869,775.6,774.88,0.2244032]
[1754589740570,0.849,775.59,774.88,0.2244032]
[1754589741665,0.86018709,775.58,774.88,0.2244032]
[1754589741868,0.86018709,775.57,774.88,0.2244032]
[1754589742165,0.86018709,775.56,774.88,0.2244032]
[1754589742369,0.849,775.59,774.88,0.2244032]
[1754589742666,0.86015926,775.58,774.88,0.2244032]
[1754589742868,0.86015926,775.57,774.88,0.2244032]
[1754589743069,0.86015926,775.56,774.88,0.2244032]
[1754589743270,0.86015926,775.55,774.88,0.2244032]
[1754589743468,0.86015926,775.54,774.88,0.2244032]
[1754589743768,0.86015926,775.53,774.88,0.2244032]
[1754589743968,0.86015926,775.52,774.88,0.2244032]
[1754589744168,0.86015926,775.51,774.88,0.2244032]
[1754589744365,0.86015926,775.5,774.88,0.2244032]
[1754589744566,0.86015926,775.49,774.88,0.2244032]
[1754589744770,0.86015926,775.48,774.88,0.2244032]
[1754589744965,0.86015926,775.47,774.88,0.2244032]
[1754589745169,0.86015926,775.46,774.88,0.2244032]
[1754589745369,0.86015926,775.45,774.88,0.2244032]
[1754589745674,0.86015926,775.44,774.88,0.2244032]
[1754589745870,0.86015926,775.43,774.88,0.2244032]
[1754589746069,0.86015926,775.42,774.88,0.2244032]
[1754589746269,0.86015926,775.41,774.88,0.2244032]
[1754589746470,0.849,775.59,774.88,0.2244032]
[1754589746671,0.85897638,775.58,774.88,0.2244032]
[1754589746866,0.85897638,775.57,774.67,0.86407175]
[1754589747068,0.85897638,775.56,774.59,0.86407175]
[1754589747365,0.85897638,775.55,774.72,0.22445676]
[1754589747565,0.85897638,775.54,774.72,0.22445676]
[1754589747765,0.85897638,775.53,774.72,0.22445676]
[1754589747970,0.85897638,775.52,774.72,0.22445676]
[1754589748273,0.85897638,775.51,774.72,0.22445676]
[1754589748573,0.85897638,775.5,774.72,0.22445676]
[1754589748771,0.85897638,775.49,774.72,0.22445676]
[1754589748970,0.85897638,775.48,774.72,0.22445676]
[1754589749267,0.849,775.59,774.72,0.22445676]
[1754589749472,0.85835617,775.58,774.72,0.22445676]
[1754589749767,0.85835617,775.57,774.72,0.22445676]
[1754589749971,0.85835617,775.56,774.72,0.22445676]
[1754589750272,0.85835617,775.55,774.72,0.22445676]
[1754589750471,0.85835617,775.54,774.72,0.22445676]
[1754589750671,0.85835617,775.53,774.72,0.22445676]
[1754589750872,0.85835617,775.52,774.72,0.22445676]
[1754589751072,0.85820344,775.51,774.72,0.22445676]
[1754589751371,0.85821995,775.5,774.72,0.22445676]
[1754589751572,0.849,775.59,774.72,0.22445676]
[1754589751773,0.85806712,775.58,774.72,0.22445676]
[1754589751973,0.85806712,775.57,774.72,0.22445676]
[1754589752273,0.85806712,775.56,774.72,0.22445676]
[1754589752470,0.85806712,775.55,774.72,0.22445676]
[1754589756275,0.857724,775.52,774.72,0.22445676]
[1754589756471,0.857724,775.51,774.72,0.22445676]
[1754589756679,0.857724,775.5,774.72,0.22445676]
[1754589756878,0.857724,775.49,774.72,0.22445676]
[1754589757179,0.857724,775.48,774.72,0.22445676]
[1754589757377,0.857724,775.47,774.72,0.22445676]
[1754589757575,0.849,775.59,774.72,0.22445676]
[1754589757775,0.85745789,775.58,774.72,0.22445676]
[1754589757977,0.86699635,775.55,774.72,0.22445676]
[1754589758178,0.85745789,775.54,774.72,0.22445676]
[1754589758379,0.85745789,775.53,774.72,0.22445676]
[1754589758578,0.85745789,775.52,774.72,0.22445676]
[1754589758780,0.85745789,775.51,774.72,1.08852851]
[1754589759078,0.869,775.6,774.76,0.86407175]
[1754589759279,0.85728986,775.59,774.76,0.86407175]
[1754589759478,0.85728986,775.58,774.77,0.86407175]
[1754589759678,0.85728986,775.57,774.79,0.86407175]
[1754589759975,0.869,775.6,774.82,0.86407175]
[1754589760176,0.85722213,775.59,774.82,0.86407175]
[1754589760475,0.85722213,775.58,774.82,0.86407175]
[1754589760682,0.8572657,775.57,774.82,0.86407175]
[1754589760880,0.8572657,775.56,774.79,0.86407175]
[1754589761081,0.8572657,775.55,774.79,0.86407175]
[1754589761280,0.8572657,775.54,774.79,0.86407175]
[1754589761580,0.8572657,775.53,774.79,0.86407175]
[1754589761780,0.8572657,775.52,774.79,0.86407175]
[1754589761977,0.8572657,775.51,774.79,0.86407175]
[1754589762181,0.8572657,775.5,774.79,0.86407175]
[1754589762381,0.8572657,775.49,774.79,0.86407175]
[1754589762578,1.017,775.57,774.79,0.86407175]
[1754589762779,0.85706797,775.56,774.79,0.86407175]
[1754589763079,0.85706797,775.55,774.75,0.86407175]
[1754589763281,0.85706797,775.54,774.75,0.86407175]
[1754589763483,0.85706797,775.53,774.75,0.86407175]
[1754589763781,0.85706797,775.52,774.75,0.86407175]
[1754589763982,0.85706797,775.51,774.75,0.86407175]
[1754589764182,0.85706797,775.5,774.74,0.86407175]
[1754589764381,0.85706797,775.49,774.73,0.86407175]
[1754589764579,1.017,775.57,774.73,0.86407175]
[1754589764777,0.85700032,775.56,774.73,0.86407175]
[1754589764982,0.85700032,775.55,774.73,0.86407175]
[1754589765180,0.85700032,775.54,774.73,0.86407175]
[1754589765484,0.85700032,775.53,774.73,0.86407175]
[1754589765680,0.85700032,775.52,774.73,0.86407175]
[1754589765981,0.85700032,775.51,774.73,0.86407175]
[1754589766179,0.85700032,775.5,774.73,0.86407175]
[1754589766384,0.85700032,775.49,774.73,0.86407175]
[1754589766683,1.017,775.57,774.73,0.86407175]
[1754589766878,0.85695114,775.56,774.73,0.86407175]
[1754589767081,0.85695114,775.55,774.74,0.86407175]
[1754589767282,0.85695114,775.54,774.72,0.22445676]
[1754589767482,0.85695114,775.53,774.72,0.22445676]
[1754589767783,1.017,775.57,774.72,0.22445676]
[1754589767784,0.85695114,775.52,774.72,0.22445676]
[1754589767985,1.017,775.57,774.72,0.22445676]
[1754589768186,0.85692023,775.56,774.72,0.22445676]
[1754589768487,0.85692023,775.55,774.72,0.22445676]
[1754589768687,0.85692023,775.54,774.72,0.22445676]
[1754589769088,0.85694074,775.53,774.72,0.22445676]
[1754589769289,0.85694074,775.52,774.72,0.22445676]
[1754589769489,1.201,775.53,774.72,0.22445676]
[1754589769688,0.85692774,775.52,774.72,0.22445676]
[1754589769889,1.201,775.53,774.72,0.22445676]
[1754589770089,0.85692484,775.52,774.72,0.22445676]
[1754589770287,0.85692484,775.51,774.72,0.22445676]
[1754589770485,0.85692484,775.5,774.72,0.22445676]
[1754589770790,0.85693503,775.49,774.72,0.22445676]
[1754589771090,1.201,775.53,774.72,0.22445676]
[1754589771287,0.85693306,775.52,774.72,0.22445676]
[1754589771588,0.85693306,775.51,774.72,0.22445676]
[1754589771787,0.85693306,775.5,774.72,0.22445676]
[1754589771990,0.85692496,775.49,774.72,0.22445676]
[1754589772291,1.201,775.53,774.72,0.22445676]
[1754589772493,0.85692104,775.52,774.72,0.22445676]
[1754589772788,0.85692104,775.51,774.72,0.22445676]
[1754589773087,0.85692104,775.5,774.72,0.22445676]
[1754589773292,1.201,775.53,774.72,0.22445676]
[1754589773492,0.85692339,775.52,774.72,0.22445676]
[1754589773787,0.85692339,775.51,774.72,1.08852851]
[1754589773991,0.85692339,775.5,774.72,0.22445676]
[1754589774189,0.85692339,775.49,774.72,0.22445676]
[1754589774493,0.85692339,775.48,774.8,0.86407175]
[1754589774688,0.85692339,775.47,774.8,0.86407175]
[1754589774889,0.85692339,775.46,774.8,0.86407175]
[1754589775088,0.85692339,775.45,774.81,0.86407175]
[1754589775294,0.85749209,775.44,774.81,0.86407175]
[1754589775491,0.85749209,775.43,774.81,0.86407175]
[1754589775695,0.85749209,775.42,774.8,0.86407175]
[1754589775895,1.201,775.53,774.8,0.86407175]
[1754589776191,0.85746369,775.52,774.81,0.86407175]
[1754589776394,0.85746369,775.51,774.81,0.86407175]
[1754589776594,0.85746369,775.5,774.81,0.86407175]
[1754589776791,0.85746369,775.49,774.81,0.86407175]
[1754589776989,0.85746369,775.48,774.81,0.86407175]
[1754589777189,0.85746369,775.47,774.82,0.86407175]
[1754589777391,0.85746369,775.46,774.82,0.86407175]
[1754589777694,0.85746369,775.45,774.82,0.86407175]
[1754589777990,0.85745422,775.44,774.82,0.86407175]
[1754589778196,0.85745422,775.43,774.83,0.86407175]
[1754589778399,0.85746521,775.42,774.83,0.86407175]
[1754589778597,1.201,775.53,774.83,0.86407175]
[1754589778799,0.85746521,775.52,774.83,0.86407175]
[1754589778992,0.85746521,775.51,774.91,0.86407175]
[1754589779192,0.85746521,775.5,774.92,0.86407175]
[1754589779496,0.85746521,775.49,774.92,0.86407175]
[1754589779694,1.201,775.53,774.92,0.86407175]
[1754589780096,1.201,775.53,774.97,0.86407175]
[1754589780293,1.201,775.53,774.96,0.86407175]
[1754589781797,1.201,775.53,774.97,0.86407175]
[1754589782097,1.201,775.53,774.96,0.86407175]
[1754589782298,1.201,775.53,774.97,0.86407175]
[1754589782894,1.201,775.53,774.98,0.86407175]
[1754589783095,1.201,775.53,775.06,0.86407175]
[1754589783299,1.201,775.53,775.07,0.86407175]
[1754589784201,1.201,775.53,775.06,0.86407175]
[1754589784502,1.201,775.53,775.07,0.86407175]
[1754589785202,1.201,775.53,775.06,0.86407175]
[1754589785502,1.201,775.53,775.07,0.86407175]
[1754589786205,1.201,775.53,775.06,0.86407175]
[1754589786403,1.201,775.53,775.07,0.86407175]
[1754589787104,1.201,775.53,775.06,0.86407175]
[1754589787307,1.201,775.53,775.07,0.86407175]
[1754589787501,1.201,775.53,775.08,0.86407175]
[1754589787706,1.201,775.53,775.06,0.86407175]
[1754589787907,1.201,775.53,775.07,0.86407175]
[1754589788108,1.201,775.53,775.09,0.86407175]
[1754589789206,1.201,775.53,775.1,0.86407175]
[1754589790209,1.201,775.53,775.09,0.86407175]
[1754589791110,1.201,775.53,775.08,0.86407175]
[1754589792210,1.201,775.53,775.07,0.86407175]
[1754589794214,1.201,775.53,775.06,0.86407175]
[1754589795212,1.201,775.53,775.05,0.86407175]
[1754589796111,1.201,775.53,775.04,0.86407175]
[1754589797316,1.201,775.53,775.03,0.86407175]
[1754589797514,1.201,775.53,775.08,0.86407175]
[1754589797817,1.201,775.53,774.72,0.22445676]
[1754589797818,1.201,775.53,775.09,0.86407175]
[1754589799216,1.201,775.53,775.08,0.86407175]
[1754589801319,1.201,775.53,775.07,0.86407175]
[1754589802116,1.201,775.53,775.06,0.86407175]
[1754589802517,1.201,775.53,774.92,1.1444425]
[1754589802518,1.201,775.53,775.05,0.86407175]
[1754589803723,1.201,775.53,775.06,0.86407175]
[1754589804519,1.201,775.53,775.05,0.86407175]
[1754589806323,1.017,775.57,775.05,0.86407175]
[1754589806519,1.017,775.57,775.04,0.86407175]
[1754589807724,1.017,775.57,775.03,0.86407175]
[1754589808423,1.017,775.57,775.04,0.86407175]
[1754589808728,0.725,775.56,775.04,0.86407175]
[1754589808922,0.725,775.56,775.03,0.86407175]
[1754589811824,0.725,775.56,775.04,0.86407175]
[1754589813532,1.166,775.55,775.04,0.86407175]
[1754589814134,1.166,775.55,774.72,0.22445676]
[1754589814135,1.166,775.55,775.05,0.86407175]
[1754589814434,1.166,775.55,775.0,0.86407175]
[1754589815033,1.166,775.55,775.04,0.86407175]
[1754589815433,1.166,775.55,774.72,0.22445676]
[1754589816531,1.166,775.55,775.04,0.85932397]
[1754589817436,1.166,775.55,775.05,0.85932397]
[1754589818638,1.166,775.55,775.06,0.85932397]
[1754589821637,1.166,775.55,775.05,0.85932397]
[1754589821838,1.166,775.55,775.07,0.85932397]
[1754589822141,1.166,775.55,775.03,0.85932397]
[1754589822642,1.166,775.55,774.84,1.1457652]
[1754589822840,1.166,775.55,775.03,0.8598674]
[1754589823142,1.166,775.55,775.04,0.8598674]
[1754589824040,1.166,775.55,775.03,0.8598674]
[1754589824241,1.166,775.55,775.06,0.8598674]
[1754589824442,1.166,775.55,775.07,0.8598674]
[1754589825647,1.166,775.55,775.08,0.8598674]
[1754589826446,1.166,775.55,775.09,0.8598674]
[1754589827446,1.166,775.55,775.1,0.8598674]
[1754589828650,1.166,775.55,775.11,0.8598674]
[1754589829351,1.166,775.55,775.09,0.8598674]
[1754589829550,1.166,775.55,775.11,0.8598674]
[1754589830449,1.166,775.55,775.13,0.8598674]
[1754589830644,1.166,775.55,775.06,0.8598674]
[1754589831546,1.166,775.55,775.05,0.8598674]
[1754589831950,1.166,775.55,775.06,0.8598674]
[1754589832349,1.166,775.55,775.08,0.8598674]
[1754589832552,1.166,775.55,775.09,0.8598674]
[1754589833355,1.166,775.55,775.11,0.8598674]
[1754589834452,1.166,775.55,775.12,0.8598674]
[1754589835253,1.166,775.55,775.1,0.8598674]
[1754589835452,1.166,775.55,775.11,0.8598674]
[1754589836453,1.166,775.55,774.89,1.1457652]
[1754589836454,1.166,775.55,775.12,0.8598674]
[1754589837555,1.166,775.55,775.13,0.8598674]
[1754589838355,1.166,775.55,774.72,0.22445676]
[1754589838356,1.166,775.55,775.15,0.8598674]
[1754589839558,1.166,775.55,775.16,0.8598674]
[1754589840056,1.183,775.54,775.16,0.8598674]
[1754589840560,1.183,775.54,775.21,0.8598674]
[1754589841156,1.183,775.54,775.22,0.8598674]
[1754589842161,1.183,775.54,775.23,0.8598674]
[1754589842757,1.183,775.54,774.72,0.22445676]
[1754589842758,1.183,775.54,775.24,0.8598674]
[1754589843858,1.183,775.54,775.26,0.8598674]
[1754589844158,1.183,775.54,775.27,0.8598674]
[1754589845162,1.183,775.54,775.28,0.8598674]
[1754589848662,1.183,775.54,775.29,0.8598674]
[1754589849164,1.183,775.54,775.3,0.8598674]
[1754589854170,1.183,775.54,775.31,0.8598674]
[1754589856674,1.183,775.54,775.32,0.8598674]
[1754589856874,1.183,775.54,775.25,0.8598674]
[1754589857074,1.183,775.54,775.22,0.8598674]
[1754589858075,1.183,775.54,775.21,0.8598674]
[1754589858970,1.183,775.54,775.22,0.8598674]
[1754589859175,1.166,775.55,775.25,0.8598674]
[1754589859372,1.166,775.55,775.3,0.8598674]
[1754589860181,1.166,775.55,775.29,0.8598674]
[1754589860379,1.166,775.55,775.32,0.8598674]
[1754589860777,0.751,775.54,775.33,0.8598674]
[1754589861474,0.751,775.54,774.72,0.22445676]
[1754589861475,0.751,775.54,775.35,0.86506684]
[1754589861971,0.751,775.54,775.36,0.86506684]
[1754589862377,0.751,775.54,775.35,0.86506684]
[1754589864680,0.751,775.54,775.39,0.86506684]
[1754589865482,0.751,775.54,775.38,0.86506684]
[1754589867779,0.751,775.54,775.39,0.86506684]
[1754589867975,0.751,775.54,775.4,0.86506684]
[1754589868180,0.751,775.54,775.42,0.86506684]
[1754589868580,0.751,775.54,775.44,0.86506684]
[1754589869481,0.751,775.54,775.43,0.86506684]
[1754589869682,0.751,775.54,775.44,0.86506684]
[1754589870482,0.751,775.54,775.43,0.86506684]
[1754589872382,0.751,775.54,775.42,0.86506684]
[1754589874385,0.751,775.54,775.41,0.86506684]
[1754589875990,0.751,775.54,775.42,0.86506684]
[1754589876488,0.751,775.54,775.41,0.86506684]
[1754589877590,0.751,775.54,775.4,0.86506684]
[1754589877790,0.751,775.54,775.42,0.86506684]
[1754589878390,0.751,775.54,775.41,0.86506684]
[1754589879094,0.751,775.54,775.42,0.86506684]
[1754589879395,0.751,775.54,775.41,0.86506684]
[1754589882996,0.751,775.54,775.36,0.86506684]
[1754589883397,0.751,775.54,775.35,0.86506684]
[1754589885294,0.751,775.54,775.34,0.86506684]
[1754589885796,0.751,775.54,775.35,0.86506684]
[1754589886097,0.995,775.53,775.34,0.86506684]
[1754589887098,0.995,775.53,775.32,0.86506684]
[1754589889195,0.995,775.53,775.31,0.86506684]
[1754589890900,0.995,775.53,775.3,0.86506684]
[1754589892000,0.995,775.53,775.31,0.86506684]
[1754589892899,0.995,775.53,775.34,0.86506684]
[1754589893902,0.995,775.53,775.32,0.86506684]
[1754589894402,1.06,775.52,775.32,0.86506684]
[1754589894602,1.06,775.52,775.29,0.86506684]
[1754589894997,1.06,775.52,775.3,0.86506684]
[1754589897801,1.06,775.52,775.26,0.86506684]
[1754589898000,1.06,775.52,775.27,0.86506684]
[1754589898401,1.06,775.52,775.24,0.86506684]
[1754589898605,1.06,775.52,775.21,0.86506684]
[1754589900609,1.06,775.52,775.2,0.86506684]
[1754589901809,1.06,775.52,775.21,0.86506684]
[1754589904510,1.06,775.52,775.22,0.86506684]
[1754589905210,1.06,775.52,775.21,0.86506684]
[1754589905412,1.06,775.52,775.22,0.86506684]
[1754589906810,1.06,775.52,775.24,0.86506684]
[1754589907113,1.06,775.52,775.26,0.86506684]
[1754589907512,1.06,775.52,775.27,0.86506684]
[1754589907715,1.06,775.52,775.3,0.86506684]
[1754589908413,0.995,775.53,775.31,0.86506684]
[1754589908914,0.995,775.53,775.35,0.86506684]
[1754589909116,0.995,775.53,775.19,1.1457652]
[1754589909117,0.995,775.53,775.37,0.86506684]
[1754589909413,0.995,775.53,774.72,0.22445676]
[1754589909414,0.995,775.53,775.47,0.86506684]
[1754589910119,0.995,775.53,775.45,0.86506684]
[1754589910318,0.995,775.53,774.72,0.22445676]
[1754589910319,0.995,775.53,775.46,0.86506684]
[1754589914424,0.995,775.53,775.44,0.86506684]
[1754589917124,0.995,775.53,775.43,0.86506684]
[1754589917426,0.995,775.53,775.44,0.86506684]
[1754589917625,0.995,775.53,775.05,1.7186479]
[1754589917626,0.995,775.53,775.45,0.86506684]
[1754589918326,0.995,775.53,775.44,0.86506684]
[1754589918528,0.995,775.53,775.45,0.86506684]
[1754589919327,0.836,775.65,775.45,0.86506684]
[1754589919528,0.836,775.65,775.46,0.86506684]
[1754589920027,0.836,775.65,775.42,0.86506684]
[1754589922625,1.043,775.64,775.42,0.86506684]
[1754589925828,1.043,775.64,775.43,0.86506684]
[1754589927034,1.043,775.64,775.42,0.86506684]
[1754589929833,1.043,775.64,775.47,0.86506684]
[1754589931337,1.043,775.64,775.46,0.86506684]
[1754589935438,1.043,775.64,775.45,0.86506684]
[1754589935737,1.043,775.64,775.46,0.86506684]
[1754589936234,1.043,775.64,775.47,0.86506684]
[1754589936838,1.043,775.64,775.46,0.86506684]
[1754589938740,1.043,775.64,775.37,0.86506684]
[1754589939135,0.836,775.65,775.37,0.86506684]
[1754589939840,0.836,775.65,775.38,0.86506684]
[1754589940136,0.22430629,776.24,775.38,0.86506684]
[1754589940441,0.85999398,776.23,775.38,0.86506684]
[1754589940639,0.85999398,776.22,775.38,0.86506684]
[1754589940836,0.85999398,776.21,775.38,0.86506684]
[1754589941135,0.85999398,776.2,775.38,0.86506684]
[1754589941346,0.85999398,776.19,775.38,0.86506684]
[1754589941535,0.85999398,776.18,775.38,0.86506684]
[1754589941840,1.91499398,776.17,775.38,0.8642765]
[1754589942139,0.85996307,776.16,775.38,0.8642765]
[1754589942336,0.85996307,776.15,775.38,0.8642765]
[1754589942535,0.85996307,776.15,774.91,1.7186479]
[1754589942536,0.85996307,776.14,775.4,0.8642765]
[1754589942739,0.85996307,776.13,775.4,0.8642765]
[1754589942940,1.89896307,776.12,775.4,0.8642765]
[1754589943140,0.85996307,776.11,775.4,0.8642765]
[1754589943340,0.85996307,776.1,775.37,0.8642765]
[1754589943538,1.039,776.12,775.37,0.8642765]
[1754589943840,0.85989074,776.11,775.37,0.8642765]
[1754589944038,0.85989074,776.1,775.4,0.8642765]
[1754589944237,0.85989074,776.09,775.39,0.8642765]
[1754589944439,1.039,776.12,775.38,0.8642765]
[1754589944641,0.85987016,776.11,775.38,0.8642765]
[1754589944937,1.039,776.12,775.38,0.8642765]
[1754589945140,0.85987066,776.11,775.38,0.8642765]
[1754589945338,0.85987066,776.1,775.38,0.8642765]
[1754589945539,0.8598478,776.09,775.38,0.8642765]
[1754589945734,1.039,776.12,775.38,0.8642765]
[1754589945937,0.85984795,776.11,775.38,0.8642765]
[1754589946137,0.85984795,776.1,775.38,0.8642765]
[1754589946337,0.85984795,776.09,775.37,0.8642765]
[1754589946537,1.039,776.12,775.37,0.8642765]
[1754589946736,0.85982868,776.11,775.37,0.8642765]
[1754589946940,0.85982868,776.1,775.37,0.8642765]
[1754589947142,0.85982868,776.09,775.37,0.8642765]
[1754589947337,0.85982868,776.08,775.37,0.8642765]
[1754589947539,1.039,776.12,775.37,0.8642765]
[1754589947737,0.85981556,776.11,775.37,0.8642765]
[1754589947938,0.85981556,776.1,775.37,0.8642765]
[1754589948143,0.85981556,776.09,775.37,0.8642765]
[1754589948341,1.039,776.12,775.37,0.8642765]
[1754589948540,0.8597964,776.11,775.37,0.8642765]
[1754589948840,0.8597964,776.1,775.4,0.8642765]
[1754589949041,0.8597964,776.09,775.4,0.8642765]
[1754589949241,0.8597964,776.08,775.4,0.8642765]
[1754589949443,0.8597964,776.07,775.4,0.8642765]
[1754589949641,1.039,776.12,775.4,0.8642765]
[1754589949841,0.85978772,776.11,775.4,0.8642765]
[1754589950045,0.85978772,776.1,775.4,0.8642765]
[1754589950245,0.85978772,776.09,775.4,0.8642765]
[1754589950546,0.85978772,776.08,775.4,0.8642765]
[1754589950741,0.85978772,776.07,775.4,0.8642765]
[1754589950942,1.039,776.12,775.4,0.8642765]
[1754589951141,0.8597744,776.11,775.4,0.8642765]
[1754589951444,0.8597744,776.1,775.4,0.8642765]
[1754589951643,0.8597744,776.09,775.4,0.8642765]
[1754589951847,0.8597744,776.08,775.4,0.8642765]
[1754589952145,0.8597744,776.07,775.4,0.8642765]
[1754589952348,1.039,776.12,775.4,0.8642765]
[1754589952546,0.85976207,776.11,775.4,0.8642765]
[1754589952745,0.85976207,776.1,775.4,0.8642765]
[1754589952948,0.85976207,776.09,775.4,0.8642765]
[1754589953146,0.85976207,776.08,775.43,0.8642765]
[1754589953445,0.85976207,776.07,775.43,0.8642765]
[1754589953650,0.85976207,776.06,775.43,0.8642765]
[1754589953848,1.039,776.12,775.43,0.8642765]
[1754589954051,0.85693604,776.11,775.43,0.8642765]
[1754589954250,0.85693604,776.1,775.46,0.8642765]
[1754589954461,0.85693604,776.09,775.46,0.8642765]
[1754589954653,0.85693604,776.08,775.46,0.8642765]
[1754589954853,0.85693604,776.07,775.49,0.8642765]
[1754589955052,0.85693604,776.07,775.28,1.1457652]
[1754589955053,0.85693604,776.06,775.43,0.8642765]
[1754589955254,0.85693604,776.05,775.43,0.8642765]
[1754589955553,1.039,776.12,775.43,0.8642765]
[1754589955753,0.85692948,776.11,775.43,0.8642765]
[1754589956049,0.85692948,776.1,775.43,0.8642765]
[1754589956353,0.85692948,776.09,775.43,0.8642765]
[1754589956548,0.85692948,776.08,775.43,0.8642765]
[1754589956750,0.85692948,776.07,775.43,0.8642765]
[1754589956950,0.85692948,776.06,775.43,0.8642765]
[1754589957154,0.85692948,776.05,775.43,0.8642765]
[1754589957455,1.039,776.12,775.43,0.8642765]
[1754589957655,0.8569588,776.11,775.43,0.8642765]
[1754589957856,0.8569588,776.1,775.43,0.8642765]
[1754589958053,0.8569588,776.09,775.43,0.8642765]
[1754589958257,0.8569588,776.08,775.43,0.8642765]
[1754589958556,0.8569588,776.07,775.43,0.8642765]
[1754589958757,0.8569588,776.06,775.43,0.8642765]
[1754589958958,0.8569588,776.05,775.44,0.8642765]
[1754589959157,1.039,776.12,775.43,0.8642765]
[1754589959357,0.85700137,776.11,775.44,0.8642765]
[1754589959556,0.85700137,776.1,775.44,0.8642765]
[1754589959756,0.85700137,776.09,775.44,0.8642765]
[1754589960057,0.85700137,776.08,775.43,0.8642765]
[1754589960255,0.85700137,776.07,775.42,0.8642765]
[1754589960457,0.85700137,776.06,775.42,0.8642765]
[1754589960655,0.85700137,776.05,775.42,0.8642765]
[1754589961151,0.85700137,776.05,775.31,0.8642765]
[1754589961354,0.85700137,776.05,775.28,0.8642765]
[1754589961652,0.85700137,776.05,775.06,1.1457652]
[1754589961653,0.85700137,776.05,775.31,0.8642765]
[1754589961854,0.85700137,776.05,775.32,0.8642765]
[1754589962060,0.8571218,776.04,775.33,0.8642765]
[1754589962257,0.8571218,776.03,775.34,0.8642765]
[1754589962453,0.8571873,776.02,775.34,0.8642765]
[1754589962652,0.8571873,776.01,775.34,0.8642765]
[1754589962854,0.8571873,776.0,775.34,0.8642765]
[1754589963059,0.8571873,775.99,775.39,0.8642765]
[1754589963357,0.8571873,775.98,775.41,0.8642765]
[1754589963554,0.8571873,775.97,775.41,0.8642765]
[1754589963854,0.8571873,775.96,775.41,0.8642765]
[1754589964058,0.8571873,775.95,775.41,0.8642765]
[1754589964257,0.8571873,775.94,775.41,0.8642765]
[1754589964554,0.8571873,775.93,775.42,0.8642765]
[1754589964756,0.8571873,775.92,775.42,0.8642765]
[1754589964955,0.8571873,775.91,775.42,0.8642765]
[1754589965157,0.85736326,775.9,775.42,0.8642765]
[1754589965360,0.85736326,775.89,775.43,0.8642765]
[1754589965560,0.75,776.06,775.43,0.8642765]
[1754589965759,0.85745766,776.05,775.43,0.8642765]
[1754589966059,1.77145766,776.04,775.43,0.8642765]
[1754589966262,0.85745766,776.03,775.43,0.8642765]
[1754589967062,0.85745766,776.03,775.45,0.8642765]
[1754589967759,0.85745766,776.03,775.46,0.8642765]
[1754589968560,0.85745766,776.03,775.5,0.8642765]
[1754589968864,0.85745766,776.03,775.48,0.8642765]
[1754589969558,0.85745766,776.03,775.51,0.8642765]
[1754589969863,0.85745766,776.03,775.54,0.8642765]
[1754589970561,0.85745766,776.03,775.53,0.8642765]
[1754589970963,0.914,776.04,775.53,0.8642765]
[1754589971260,0.85790738,776.03,775.53,0.8642765]
[1754589971464,0.85790738,776.02,775.53,0.8642765]
[1754589971660,0.85790738,776.01,775.53,0.8642765]
[1754589971861,0.85790738,776.0,775.53,0.8642765]
[1754589972062,0.914,776.04,775.53,0.8642765]
[1754589972063,0.85790738,775.99,775.53,0.8642765]
[1754589972261,0.914,776.04,775.53,0.8642765]
[1754589972563,0.85803568,776.03,775.54,0.8642765]